Cogmind - Beta 13 @@@ ROGUE MODE // 2024.04.05 @ 16:51:25 Player: graour Result: Destroyed by as-98352 with Assembled Rifle Performance ------------- Evolutions (0) 0 Regions Visited (2) 400 Robots Destroyed (8) 40 Value Destroyed (72) 72 Prototype IDs (0) 0 Alien Tech Used (0) 0 Bonus (14) 14 TOTAL SCORE: 526 Bonus ------- Follower Combat Kills 14 Cogmind --------- Core Integrity 0/250 Matter 300/300 Energy 99/100 System Corruption 0% Temperature Cool (0) Movement Core (100) Ox1 Location -10/Mines Parts ------- > --- POWER (1) -------- (None) > --- PROPULSION (2) --- (None) > --- UTILITY (2) ------ Small Storage Unit Signal Interpreter > --- WEAPON (2) ------- (None) > --- INVENTORY (8) ---- Ion Engine Ion Engine Aluminum Leg Small Storage Unit Light Assault Rifle Datajack Peak State ------------ > --- POWER ------------ Light Nuclear Core > --- PROPULSION ------- Aluminum Leg Aluminum Leg > --- UTILITY ---------- Small Storage Unit Signal Interpreter > --- WEAPON ----------- Beam Rifle Grenade Launcher > --- INVENTORY -------- Ion Engine Ion Engine Small Storage Unit Medium Laser Medium Laser Light Assault Rifle [Rating: 10] Favorites ----------- Power Light Nuclear Core Engine Ion Engine Power Core Light Nuclear Core Propulsion Aluminum Leg Leg Aluminum Leg Utility Small Storage Unit Storage Small Storage Unit Processor Signal Interpreter Weapon Grenade Launcher Energy Gun Beam Rifle Launcher Grenade Launcher Build | -11 -10 -10 ------- Run | Yrd Mat Min Slots Evolved . | . . . Power . | . . . Propulsion . | . . . Utility . | . . . Weapon . | . . . Parts Attached 15 | 7 6 2 Power 2 | 1 1 . Engine 1 | 1 . . Core 1 | . 1 . Reactor . | . . . Propulsion 4 | 2 2 . Treads . | . . . Leg 4 | 2 2 . Wheel . | . . . Hover . | . . . Flight . | . . . Utility 3 | 2 1 . Device . | . . . Storage 2 | 2 . . Processor 1 | . 1 . Hackware . | . . . Protection . | . . . Artifact . | . . . Weapon 6 | 2 2 2 Energy Gun 5 | 2 1 2 Energy Cannon . | . . . Ballistic Gun . | . . . Ballistic Cannon . | . . . Launcher 1 | . 1 . Special Weapon . | . . . Impact Weapon . | . . . Slashing Weapon . | . . . Piercing Weapon . | . . . Special Melee Weapon . | . . . Unidentified Prototypes . | . . . Parts Lost 7 | . . 7 Power 1 | . . 1 Propulsion 2 | . . 2 Utility . | . . . Weapon 4 | . . 4 Highest Loss Streak 7 | . . 7 To Critical Strikes . | . . . Average Slot Usage (%) 96 | . 99 91 Engine 3 | . 6 . Core 9 | . 7 11 Leg 26 | . 28 24 Storage 14 | . 15 14 Processor 13 | . 12 14 Energy Gun 14 | . 14 14 Launcher 12 | . 13 11 Naked Turns . | . . . Heaviest Build 20 | 19 20 16 Greatest Support 20 | 20 20 20 Greatest Overweight (x) 2 | . . 2 Average Overweight (x) . | . . . Largest Inventory Capacity 8 | 8 8 8 Average Capacity 7 | 6 8 8 Most Carried 8 | 2 8 8 Average Carried 5 | . 5 7 Final Capacity 8 | 8 8 8 Final Carried 8 | 2 8 6 Class Distribution -------------------- 100% | Mutant Dominant Class ---------------- Mutant | -10/Materials Mutant | -10/Mines Resources | -11 -10 -10 ----------- Run | Yrd Mat Min Matter Collected 374 | 270 70 34 Remotely . | . . . Salvage Created 213 | 96 20 97 Parts 17 | 2 4 11 Haulers Intercepted . | . . . Recyclers Shooed 1 | . 1 . Parts Field Recycled . | . . . Retrieved Matter . | . . . Parts Self-Destructed . | . . . Prevented . | . . . Kills | -11 -10 -10 ------- Run | Yrd Mat Min Combat Hostiles Destroyed 5 | . . 5 Guns 2 | . . 2 AOE 3 | . . 3 Classes Destroyed 5 | 1 1 3 Builder 2 | . . 2 Recycler 1 | 1 . . Watcher 1 | . 1 . Swarmer 4 | . . 4 Assembled 1 | . . 1 Best Kill Streak 3 | 1 1 3 Combat Bots Only 3 | . . 3 Max Kills in Single Turn 3 | 1 1 3 Gunslinging . | . . . Exploded 3 | . . 3 Melee . | . . . Uniques/NPCs Destroyed . | . . . Combat | -11 -10 -10 -------- Run | Yrd Mat Min Hostile Shots Fired 43 | . . 43 Missed 12 | . . 12 Damage Taken 907 | . 69 838 Core 261 | . 32 229 Absorbed by Shields . | . . . Regen/Repaired (Parts) 31 | . 31 . Core Remaining (%) 100 | 100 . . Volleys Fired 12 | 2 3 7 Largest 2 | 2 2 2 Hottest 100 | 100 86 100 Shots Fired 23 | 4 6 13 Gun 16 | 4 3 9 Cannon . | . . . Launcher 7 | . 3 4 Special . | . . . Kinetic . | . . . Thermal 16 | 4 3 9 Explosive 7 | . 3 4 Electromagnetic . | . . . Robot Hit Streak 7 | 4 1 7 Robot Miss Streak 3 | . 3 1 Penetration Max . | . . . Secondary Targets . | . . . Shots Hit Robots 16 | 4 2 10 Core Hits 23 | 2 4 17 Critical Kills . | . . . Critical Parts Destroyed . | . . . Critical Strikes 1 | . . 1 Burn 1 | . . 1 Melee Attacks . | . . . Impact . | . . . Slashing . | . . . Piercing . | . . . Sneak Attacks . | . . . Combat Hostiles . | . . . Follow-up Attacks . | . . . Damage Inflicted 522 | 51 158 313 Guns 145 | 51 . 94 Cannons . | . . . Explosions 357 | . 146 211 Melee . | . . . Ramming 20 | . 12 8 Kinetic . | . . . Thermal 145 | 51 . 94 Explosive 357 | . 146 211 Electromagnetic . | . . . Impact . | . . . Slashing . | . . . Piercing . | . . . Highest Corruption . | . . . Average Corruption . | . . . Corruption Purged . | . . . Corruption Blocked . | . . . Overload Shots . | . . . Overflow Damage 3 | . 3 . Projectiles . | . . . Explosions 3 | . 3 . Melee . | . . . Knockbacks . | . . . Impact . | . . . Kinetic . | . . . Secondary . | . . . Self-Inflicted Damage 26 | . 26 . Shots 1 | . 1 . Rammed . | . . . Targets Rammed 6 | . 4 2 Kicked 6 | . 4 2 Crushed . | . . . Highest Temperature 80 | 48 60 80 Average Temperature 27 | 24 28 28 Received Heat Transfer . | . . . Siege Activations . | . . . Robots Corrupted . | . . . Combat Hostiles . | . . . Parts Fried . | . . . Impact Corruptions . | . . . Robots Melted . | . . . Combat Hostiles . | . . . Parts Melted 1 | 1 . . Heat Transferred 481 | 148 . 333 Parts Sabotaged . | . . . Parts Stolen . | . . . Parts Stripped . | . . . Power Chain Reactions . | . . . Alert | -11 -10 -10 ------- Run | Yrd Mat Min Peak Influence 186 | 5 44 186 Initial 3 | . 3 3 Average 39 | 3 8 96 Maximum Alert Level . | . . . Low Security (%) 100 | 100 100 100 Level 1 . | . . . Level 2 . | . . . Level 3 . | . . . Level 4 . | . . . Level 5 . | . . . High Security . | . . . Max Security . | . . . Squads Dispatched 1 | . 1 . Investigation . | . . . Extermination . | . . . Reinforcement 1 | . 1 . Assault . | . . . Garrison . | . . . Intercept . | . . . Searches Triggered . | . . . Construction Impeded . | . . . Haulers Reinforced . | . . . Active Scanning Responses . | . . . Cargo Convoy Interrupts . | . . . Stealth | -11 -10 -10 --------- Run | Yrd Mat Min Distress Signals 2 | . 2 . Communications Jammed . | . . . Distress Signals . | . . . Times Spotted 19 | . 2 17 Peak Tracking Total 9 | . 2 9 Tactical Retreats . | . . . Traps | -11 -10 -10 ------- Run | Yrd Mat Min Traps Triggered 2 | . 2 . Indirectly . | . . . Trap Hack Attempts . | . . . Triggered . | . . . Disarmed . | . . . Reprogrammed . | . . . Reused . | . . . Traps Extracted . | . . . Installed . | . . . Triggered . | . . . Machines | -11 -10 -10 ---------- Run | Yrd Mat Min Machines Disabled . | . . . Max in Single Turn . | . . . Machines Repaired . | . . . Machines Dismantled . | . . . Machines Sabotaged . | . . . Overloaded Fab Kills . | . . . Hacking | -11 -10 -10 --------- Run | Yrd Mat Min Machines Accessed 3 | . 3 . Terminals 2 | . 2 . Fabricators . | . . . Repair Stations 1 | . 1 . Recycling Units . | . . . Scanalyzers . | . . . Garrison Access . | . . . Total Hacks 7 | . 7 . Successful 4 | . 4 . Failed 3 | . 3 . Catastrophic . | . . . Database Lockouts . | . . . Manual . | . . . Terminals 3 | . 3 . Fabricators . | . . . Repair Stations 4 | . 4 . Recycling Units . | . . . Scanalyzers . | . . . Garrison Access . | . . . Terminal Hacks 2 | . 2 . Record 1 | . 1 . Locate Traps 1 | . 1 . Fabricator Hacks . | . . . Repair Station Hacks 2 | . 2 . Scan Component 1 | . 1 . Repair 1 | . 1 . Recycling Unit Hacks . | . . . Scanalyzer . | . . . Garrison Access Hacks . | . . . Unauthorized Hacks . | . . . Terminals . | . . . Fabricators . | . . . Repair Stations . | . . . Recycling Units . | . . . Scanalyzers . | . . . Garrison Access . | . . . Data Cores Recovered . | . . . Used . | . . . Hacking Detections 1 | . 1 . Full Trace Events . | . . . Feedback Events . | . . . Feedback Blocked . | . . . Robot Schematics Acquired . | . . . Robots Built . | . . . Authchips . | . . . Time . | . . . Total Robot Build Rating . | . . . Part Schematics Acquired . | . . . Parts Built . | . . . Authchips . | . . . Time . | . . . Total Part Build Rating . | . . . Parts Repaired 1 | . 1 . Time 26 | . 26 . Parts Recycled . | . . . Recycled Matter . | . . . Retrieved Matter . | . . . Retrieved Components . | . . . Parts Scanalyzed . | . . . Part Schematics Acquired . | . . . Parts Damaged . | . . . Bothacking | -11 -10 -10 ------------ Run | Yrd Mat Min Used RIF Installer . | . . . Robots Hacked . | . . . Non-combat . | . . . Combat . | . . . Robot Hacks Applied . | . . . Relay Couplers Released . | . . . Fabnet Peak Effective % . | . . . Robots Rewired . | . . . Allies Hacked . | . . . Hacks Repelled . | . . . Allies | -11 -10 -10 -------- Run | Yrd Mat Min Total Allies 3 | . . 3 Largest Group 3 | . . 3 Highest-Rated Group 40 | . . 40 Highest-Rated Ally 16 | . . 16 Total Orders . | . . . Ally Attacks 6 | . . 6 Total Damage 74 | . . 74 Kills 2 | . . 2 Allies Corrupted . | . . . Allies Melted . | . . . Intel | -11 -10 -10 ------- Run | Yrd Mat Min Robot Analysis Total . | . . . Derelict Logs Recovered . | . . . Drone Launches . | . . . Drone Recoveries . | . . . Exploration | -11 -10 -10 ------------- Run | Yrd Mat Min Turns Passed 841 | 94 445 302 Spaces Moved 628 | 69 329 230 Core 17 | 9 . 8 Treads . | . . . Legs 611 | 60 329 222 Wheels . | . . . Hover . | . . . Flight . | . . . Fastest Speed 50 | 50 120 100 Average Speed 119 | 110 120 120 Slowest Speed 150 | 120 120 150 Overloaded Moves . | . . . Propulsion Burnouts . | . . . Robots Hopped . | . . . Cave-ins Triggered . | . . . Exploration Rate (%) 36 | 5 62 43 Regions Visited 2 Branch Regions 1 Pre-discovered Areas . | . . . Known Exits Taken 1 | . 1 . Unknown Exits Taken 1 | 1 . . Scrap Searched . | . . . Spaces Dug . | . . . Terrain Destroyed 46 | . 21 25 Melee . | . . . Projectile . | . . . AOE 46 | . 21 25 Terrain Rammed . | . . . Walls Destroyed . | . . . Machines Disabled . | . . . Actions | -11 -10 -10 --------- Run | Yrd Mat Min Total 691 | 79 371 241 Wait 25 | . 25 . Move 626 | 68 328 230 Hop . | . . . Pick Up 4 | 2 2 . Fast Attach 10 | 7 3 . Attach 2 | . . 2 Detach 3 | . 3 . Swap 3 | . 3 . Drop . | . . . Fire 12 | 2 3 7 Melee . | . . . Ram . | . . . Kick 6 | . 4 2 Crush . | . . . Escape Stasis . | . . . Rewire . | . . . Trap . | . . . Miscellaneous . | . . . Route ------- -11/Scrapyard -10/Materials -10/Mines History --------- Turn | Location | Event 10 | -11/Scrapyard | Discovered new exit (range 14) 95 | -11/Scrapyard | Entered Materials 283 | -10/Materials | Discovered new exit (range 16) 329 | -10/Materials | Build established: Mutant 349 | -10/Materials | Repaired Aluminum Leg 539 | -10/Materials | Identified exit to Mines 540 | -10/Materials | Entered Mines 598 | -10/Mines | Assisted by bots powering up and referring to "LRC-V3" 774 | -10/Mines | Assembled infested the area 779 | -10/Mines | Assisted by a Guerilla fighting off Assembled 824 | -10/Mines | Core integrity fell below 50% 834 | -10/Mines | Core integrity fell below 20% 837 | -10/Mines | Lost 4 allies 842 | -10/Mines | Destroyed by as-98352 with Assembled Rifle Last Messages --------------- D-53 Grenadier suffers critical hit (Destroy). D-53 Grenadier destroyed. HV Slug penetrates Earth. HV Slug penetrates D-53 Grenadier. D-53 Grenadier suffers critical hit (Destroy). The unstable cave ceiling collapses. as-57641 destroyed. as-73789 destroyed. Acquired 5 matter. Acquired 2 matter. Aluminum Leg destroyed. as-90036 destroyed. Acquired 3 matter. as-67285 destroyed. Med. Laser destroyed. The unstable cave ceiling collapses. D-53 Grenadier destroyed. The unstable cave ceiling collapses. Med. Laser destroyed. The unstable cave ceiling collapses. Map ----- +----------------------------------------------------+ | ?????????????# * #??????????? | | ????????????## # ##??????????? | | ????????????## # #??????????? | | ?????????#### ## ######## #????????? | | ?????????# # ## #??????? #???????? | | ?????????# ## ### ## #??????? #???????? | | ????????????# ##?# ## #???????? ##???????? | | ????????????# ##??# ## ????????##????????? | | ????????????## ### #???# ## ??????????????????? | | ?????????????# #??####### #####??????????????????? | | ?????????????# ###### ## #??????????????????????? | | ?????????????# # #??????????????????????? | | ?????????????###### ####???????????????????? | | ??????????????????# #???????????????????? | | ????????? #???????# ## #???????????????????? | | ???????? ?????## # ## ### ???????????? | | ??????? #### a ![ ???????????? | | ??????? aa # ==% ???????????? | | ???????????# # ###??#%= ????????????? | | ???????????#????#?## a# #???????#????????????? | | ??????????????????# #????????????????????? | | ??????????????????# ##????????????????????? | | ??????????????????# a ##????????????????????? | | ?????????????# ## a ##???????????????????? | | ?????????????# """?## ###?????????????????? | | ?????????????# ""???### @ #?????????????????? | | ???????????? "??????## #????????????????? | | ???????????? ??????????## #??????????????? | | ??????????????????????????# #???????????? | | ???????????????????????????# ## ?????????? | | ????????????????????????????# ##??? ??????????? | | ?????????????????????????????###??????#??????????? | | ?????????????????????????????????????????????????? | | ?????????????????????????????????????????????????? | | ?????????????????????????????????????????????????? | | ?????????????????????????????????????????????????? | | | | | | | | | | | | | | | | | | | | | | | | | | | | | +----------------------------------------------------+ Best States ------------- Heat Dissipation 25 Energy Generation 14 Energy Capacity 250 Matter Stores 300 Matter Capacity 300 Sight Range 16 Terrain Scan Density 10 Evasion (%) 55 Item Schematics ----------------- None Robot Schematics ------------------ None Fabricated ------------ Nothing Alien Tech Used ----------------- None Achievements -------------- None Challenges ------------ None Game ------ Seed LauncherHoverRigger Manual? 0 Play Time 00:08:32 Cumulative 3.5 hours Start 2024.04.05 @ 16:45:12 End 2024.04.05 @ 16:51:25 Sessions 1 Manual Loads 0 Difficulty Rogue Special Mode None Game No. 7 Rogue 7 Adventurer 0 Explorer 0 Win Type - Total 0 Types 0/0/0/0/0/0/0/0/0 Lore% 2 Gallery% 10 Achievement% 11 Wizard Run 0 Options --------- Layout 1 ASCII 0 Keyboard 0 Movement Arrows Keybinds 0 Fullscreen 1 Font 24/Smallcaps Map View 50x35 Zoom Use 0% Tactical HUD 0 Map Filters NONE Filters NONE Steam 1 RUN: 51f526fa-2b67-43e7-af1a-5c59f8b42e13